[Event "37th ECCC 2022"]
[Site "Mayrhofen"]
[Date "2022.10.06"]
[Round "3.36"]
[White "Givon, Asaf"]
[Black "Tarlev, Konstantin"]
[Result "0-1"]
[ECO "C84"]
[WhiteElo "2434"]
[BlackElo "2577"]
[Annotator "TA"]
[PlyCount "144"]
[EventDate "2022.10.03"]
[EventType "team-tourn"]
[EventCountry "AUT"]
[SourceTitle "playchess.com"]
[Source "ChessBase"]
[SourceQuality "1"]
[TimeControl "40/5400+30:1800+30"]

{[%evp 23,144,21,19,19,9,14,17,10,18,14,22,19,51,20,47,25,48,58,68,43,73,59,69,0,36,36,33,36,42,43,36,42,25,38,70,77,76,72,83,-61,-62,-71,-8,-62,-60,-57,-64,-62,-65,-77,-72,-97,-97,-90,-97,-114,-97,-392,-385,-385,-364,-370,-349,-304,-304,-447,-447,-447,-440,-566,-559,-525,-524,-493,-493,-493,-294,-5266,-5266,-4633,-4489,-2782,-2372,-5266,-4316,-5266,-4168,-12845,-12795,-12597,-12502,-29971,-29973,-29972,-29973,-29981,-29979,-29981,-29981,-29980,-29981,-29983,-29984,-29985,-29985,-29986,-29987,-29987,-29987,-29987,-29982,-29982,-29983,-29982,-29983,-29989,-29990,-29990,-29986,-29986,-29987,-29987,-29988]} 1. e4 {[%emt 0:01:38]} e5 {[%emt 0:00:06]} 2. Nf3 {[%emt 0:00:13]} Nc6 {[%emt 0:00:03]} 3. Bb5 {[%emt 0:00:13]} a6 {[%emt 0:00:05]} 4. Ba4 {[%emt 0:00:05]} Nf6 {[%emt 0:00:07]} 5. O-O {[%emt 0:00:14]} Be7 {[%emt 0:00:09]} 6. d3 {[%emt 0:00:44]} b5 {[%emt 0:00:13]} 7. Bb3 {[%emt 0:00:05]} d6 {[%emt 0:00:05]} 8. a4 {[%emt 0:01:15]} Bd7 {[%emt 0:01:16]} 9. c3 {[%emt 0:00:29]} O-O {[%emt 0:00:39]} 10. Bc2 {[%emt 0:00:31]} Re8 {[%emt 0:00:47]} 11. Re1 {[%emt 0:00:28]} Bf8 {[%emt 0:01:53]} 12. Nbd2 {[%emt 0:02:46][%cal Bb1d2,Bd2f1,Bf1g3,Bg3f5][%mdl 32]} h6 {[%emt 0:01:06]} 13. h3 {[%emt 0:02:13] C90: Closed Ruy Lopez with 7...d6: Early deviations.} Rb8 {[%emt 0:00:56]} 14. axb5 {[%emt 0:20:24]} axb5 {[%emt 0:02:46]} 15. Nf1 {[%emt 0:08:01] The position is equal.} d5 {[%emt 0:08:59]} 16. exd5 {[%emt 0:04:16]} Nxd5 {[%emt 0:00:20]} 17. Ng3 {[%emt 0:00:18] [#]} Nb6 $146 {[%emt 0:40:13]} ({Predecessor:} 17... b4 18. Bd2 bxc3 19. bxc3 Nf6 20. Bb3 Bd6 {½-½ (20) Martin Clemente,J (2620)-Zidu,J (2610) ICCF email 2020}) 18. Bd2 {[%emt 0:05:22]} Bc8 {[%emt 0:14:27]} 19. b4 {[%emt 0:12:42]} Bb7 {[%emt 0:02:18]} 20. Nh2 {[%emt 0:05:00]} Nd5 {[%emt 0:07:16]} 21. Ng4 {[%emt 0:14:13][%cal Od3d4] Strongly threatening d4!} Nf6 {[%emt 0:02:16]} 22. Nf5 {[%emt 0:00:39]} Kh8 {[%emt 0:04:55]} 23. d4 {[%emt 0:09:54]} (23. Qe2 $14) 23... Nxg4 {[%emt 0:00:55]} 24. Qxg4 {[%emt 0:00:07][%cal Of5h6]} Qf6 {[%emt 0:01:38]} 25. h4 {[%emt 0:05:19][%cal Od2g5]} Bc8 {[%emt 0:07:33][%cal Oe5e4]} 26. Qf3 {[%emt 0:05:28][%cal Od2g5]} (26. Qe4 {is interesting.} Bxf5 27. Qxf5 Qxf5 28. Bxf5 Red8 29. Ra6) 26... Bxf5 {[%emt 0:01:15]} 27. Qxf5 {[%emt 0:00:30]} Qxf5 {[%emt 0:00:03]} 28. Bxf5 {[%emt 0:00:02]} exd4 {[%emt 0:00:13]} 29. Rxe8 {[%emt 0:00:24]} Rxe8 {[%emt 0:00:03] [#]} 30. Bd7 $1 {[%emt 0:00:10][%csl LRc6,LRe8]} Re2 {[%emt 0:00:28]} 31. Ra8 {[%emt 0:01:34]} ({Stronger than} 31. Bxc6 Rxd2 32. Ra8 Kg8 33. cxd4 Rd1+ 34. Kh2 Rxd4 $17) (31. Bf4 Ne5 32. Bxb5 Re4 $11) ({White should try} 31. Be1 $16 Ne7 32. Bxb5 (32. cxd4 c6 $14)) 31... Kg8 $15 {[%emt 0:00:07]} 32. Bf4 {[%emt 0:00:40]} Re1+ {[%emt 0:00:50]} 33. Kh2 {[%emt 0:00:01]} Ne5 {[%emt 0:00:57]} 34. Bxe5 {[%emt 0:00:39]} Rxe5 {[%emt 0:00:20]} 35. cxd4 {[%emt 0:00:14][%mdl 4096] Endgame KRB-KRB} Rd5 {[%emt 0:00:20][%csl LRd4,LRd7]} 36. Bc6 {[%emt 0:01:07]} Rxd4 {[%emt 0:00:03]} 37. g3 {[%emt 0:00:28]} Rxb4 {[%emt 0:00:05]} 38. Kg2 {[%emt 0:00:32]} Rb2 {[%emt 0:00:37]} 39. Rc8 {[%emt 0:00:29]} b4 {[%emt 0:01:45][%cal Bb5b4,Bb4b3,Bb3b2][%mdl 32]} 40. Rxc7 $2 {[%emt 0:00:29][%mdl 8192] Now White is beyond hope.} (40. Bd5 $17) 40... Rc2 $19 {[%emt 0:00:18]} 41. Rc8 {[%emt 0:30:11]} b3 {[%emt 0:30:46]} 42. Bd7 {[%emt 0:00:23]} g6 {[%emt 0:00:00] Threatens to win with ...Rxc8.} 43. Rb8 {[%emt 0:00:00]} b2 {[%emt 0:00:00] ...Kg7 is the strong threat.} 44. Be8 {[%emt 0:00:00]} (44. h5 {only move.} Kg7 45. hxg6 fxg6 46. Rb7) 44... Kg7 {[%emt 0:00:00] aiming for ...Bc5.} ({Avoid the trap} 44... Rc8 $2 45. Bxf7+ Kxf7 46. Rb7+ Ke6 47. Rxb2 $19) 45. Rb7 {[%emt 0:00:00] [#]} Be7 $1 {[%emt 0:00:00][%mdl 512]} 46. h5 {[%emt 0:00:00]} (46. Kf3 Kf8) 46... gxh5 {[%emt 0:00:13]} 47. Kf3 {[%emt 0:00:00]} Rc8 {[%emt 0:01:15]} 48. Bxf7 {[%emt 0:00:00]} Kxf7 {[%emt 0:00:03]} 49. Rxb2 {[%emt 0:00:00] KRB-KR} h4 {[%emt 0:00:04]} (49... Rc4 $142 50. Re2 h4 51. gxh4 Rxh4) 50. gxh4 $2 {[%emt 0:00:00]} (50. Rb5) 50... Bxh4 {[%emt 0:00:30]} 51. Kg4 {[%emt 0:00:00]} Bf6 {[%emt 0:00:04]} 52. Rb5 {[%emt 0:00:00]} Kg6 {[%emt 0:00:25]} 53. Rd5 {[%emt 0:00:00]} Rc1 {[%emt 0:00:15][%cal Oh6h5] And now ...h5+! would win.} 54. Rb5 {[%emt 0:00:00]} h5+ {[%emt 0:00:11]} 55. Kh3 {[%emt 0:00:00]} Rc2 {[%emt 0:00:44]} 56. Kg3 {[%emt 0:00:52]} Bd4 {[%emt 0:00:20]} 57. f4 {[%emt 0:00:37]} Rc3+ {[%emt 0:00:15] Black mates.} 58. Kg2 {[%emt 0:00:05]} Bc5 {[%emt 0:00:11]} 59. Rb2 {[%emt 0:00:54]} Kf5 {[%emt 0:00:41]} 60. Ra2 {[%emt 0:00:09]} Kg4 {[%emt 0:01:27]} 61. f5 {[%emt 0:00:54]} Kxf5 {[%emt 0:00:09]} 62. Re2 {[%emt 0:00:24]} Be3 {[%emt 0:00:23]} 63. Ra2 {[%emt 0:00:29]} Kg4 {[%emt 0:00:04]} 64. Ra4+ {[%emt 0:01:47]} Bf4 {[%emt 0:00:05]} 65. Ra2 {[%emt 0:00:16]} Rc1 {[%emt 0:00:13]} 66. Ra3 {[%emt 0:00:44]} h4 {[%emt 0:00:10]} 67. Rg3+ {[%emt 0:00:09]} Kf5 {[%emt 0:00:28]} 68. Rb3 {[%emt 0:00:11]} Rc2+ {[%emt 0:00:33]} 69. Kh1 {[%emt 0:01:52]} Kg4 {[%emt 0:00:05]} 70. Rb1 {[%emt 0:00:18]} Kh3 {[%emt 0:00:05]} 71. Rb3+ {[%emt 0:01:00]} Bg3 {[%emt 0:00:06][%cal Rc2c1]} 72. Rb1 {[%emt 0:00:03]} Rh2+ {Weighted Error Value: White=0.69/Black=0.12 (very precise)} 0-1

[Event "37th ECCC 2022"]
[Site "Mayrhofen"]
[Date "2022.10.05"]
[Round "3.37"]
[White "Heimann, Andreas"]
[Black "Tari, Aryan"]
[Result "1/2-1/2"]
[ECO "D85"]
[WhiteElo "2573"]
[BlackElo "2656"]
[Annotator "TA"]
[PlyCount "118"]
[EventDate "2022.10.03"]
[EventType "team-tourn"]
[EventCountry "AUT"]
[SourceTitle "playchess.com"]
[Source "ChessBase"]
[SourceQuality "1"]
[TimeControl "40/5400+30:1800+30"]

{[%evp 19,118,3,7,0,16,4,21,-3,0,-30,-23,-29,-27,-18,-20,-13,-15,-22,-18,-89,-89,-89,-89,-89,-89,-106,-106,-106,-106,-106,-84,-84,-84,-84,-84,-90,-87,-126,-126,-126,-118,-118,-118,-118,-118,-126,-126,-126,-126,-126,-126,-126,-126,-126,-126,-126,-126,-126,-126,-126,-126,-126,-126,-126,-126,-126,-126,-126,-126,-126,-126,-126,0,-126,-104,-104,-104,-104,-104,-104,-104,-104,-104,-104,-104,-104,0,-104,0,0,0,0,0,0,0,0,0,0,0,0,0]} 1. d4 {[%emt 0:00:02]} Nf6 {[%emt 0:01:12]} 2. c4 {[%emt 0:00:04]} g6 {[%emt 0:00:02]} 3. Nc3 {[%emt 0:00:19]} d5 {[%emt 0:00:05]} 4. cxd5 {[%emt 0:03:59]} Nxd5 {[%emt 0:00:07]} 5. e4 {[%emt 0:00:02]} Nxc3 {[%emt 0:00:08]} 6. bxc3 {[%emt 0:00:02]} Bg7 {[%emt 0:00:08]} 7. Nf3 {[%emt 0:00:02]} c5 {[%emt 0:00:10]} 8. Bb5+ {[%emt 0:00:04]} Nc6 {[%emt 0:00:43]} 9. O-O {[%emt 0:04:38]} O-O {[%emt 0:06:58]} 10. Bxc6 {[%emt 0:00:23]} bxc6 {[%emt 0:00:07]} 11. Qc2 {[%emt 0:00:09] D85: Exchange Grünfeld: Unusual White 7th moves and lines with 7 Nf3.} Qa5 {[%emt 0:14:52] Against Ba3} 12. Be3 {[%emt 0:17:38]} Be6 {[%emt 0:17:19] [#]} 13. Nd2 $146 {[%emt 0:05:02]} ({Predecessor:} 13. dxc5 Qxc3 14. Qxc3 Bxc3 15. Rac1 Bg7 16. Bd4 Rfd8 17. Bxg7 Kxg7 18. a3 f6 19. e5 {1-0 (88) Dubov,D (2720)-Puranik,A (2604) Warsaw 2021}) 13... Rfb8 {[%emt 0:10:48]} 14. Nb3 {[%emt 0:39:15]} Qa4 {[%emt 0:02:05] [#] ...c4 is the strong threat.} 15. Rfc1 {[%emt 0:00:05]} Bxb3 {[%emt 0:04:59]} 16. axb3 {[%emt 0:00:06]} Qxb3 {[%emt 0:00:08]} 17. Qxb3 {[%emt 0:00:07]} Rxb3 {[%emt 0:00:07]} 18. Ra6 {[%emt 0:00:03]} Rb6 {[%emt 0:05:34]} 19. Rca1 {[%emt 0:01:26] [#]} (19. Ra5 $11 {keeps the balance.}) 19... Rxa6 $1 $17 {[%emt 0:02:34]} 20. Rxa6 {[%emt 0:00:15]} cxd4 {[%emt 0:01:39]} 21. cxd4 {[%emt 0:01:58][%mdl 4096] Endgame KRB-KRB} Rd8 {[%emt 0:00:11]} 22. d5 {[%emt 0:18:25]} cxd5 {[%emt 0:01:09]} 23. exd5 {[%emt 0:00:05]} Rxd5 {[%emt 0:01:51][%cal Rd5d1]} 24. g3 {[%emt 0:00:12]} g5 {[%emt 0:10:12]} 25. Rxa7 {[%emt 0:00:37]} Bf6 {[%emt 0:00:13]} 26. Kg2 {[%emt 0:06:44]} h5 {[%emt 0:02:13]} 27. Rc7 {[%emt 0:00:12]} Kg7 {[%emt 0:03:31]} 28. Rc5 {[%emt 0:00:07]} Rxc5 {[%emt 0:05:46]} 29. Bxc5 {[%emt 0:00:05] KB-KB} g4 {[%emt 0:00:15]} 30. h3 {[%emt 0:00:48]} Kg6 {[%emt 0:00:25]} 31. hxg4 {[%emt 0:00:05]} hxg4 {[%emt 0:00:01]} 32. Kf1 {[%emt 0:00:37]} Kf5 {[%emt 0:00:05]} 33. Ke2 {[%emt 0:00:04]} Ke4 {[%emt 0:00:04]} 34. Ba3 {[%emt 0:00:22]} Bg5 {[%emt 0:01:47]} 35. Bc5 {[%emt 0:00:11]} e6 {[%emt 0:01:08]} 36. Bb6 {[%emt 0:00:19]} f5 {[%emt 0:00:16]} 37. Bc5 {[%emt 0:00:25]} Bf6 {[%emt 0:01:07]} 38. Bb6 {[%emt 0:00:12]} Bd4 {[%emt 0:00:50]} 39. Bc7 {[%emt 0:00:05]} Kd5 {[%emt 0:01:26]} 40. Bf4 {[%emt 0:00:26]} Bc5 {[%emt 0:00:22]} 41. Bc7 {[%emt 0:30:40]} e5 {[%emt 0:33:21]} 42. Ba5 {[%emt 0:00:50]} Bd6 {[%emt 0:01:29]} 43. Bd2 {[%emt 0:00:47]} Ke4 {[%emt 0:00:57]} 44. Ba5 {[%emt 0:00:38]} Bc5 {[%emt 0:01:09]} 45. Bd2 {[%emt 0:00:35]} Kd5 {[%emt 0:00:20]} 46. Ba5 $1 {[%emt 0:00:12]} e4 {[%emt 0:01:09]} 47. Bd2 {[%emt 0:00:49]} Bd6 {[%emt 0:00:35]} 48. Be3 {[%emt 0:00:24]} Be5 {[%emt 0:00:28]} 49. Bd2 {[%emt 0:00:10]} Ke6 {[%emt 0:00:18]} 50. Be3 {[%emt 0:00:05]} Bd6 {[%emt 0:00:49]} 51. Bd2 {[%emt 0:00:11]} Bc5 {[%emt 0:00:18]} 52. Bc1 {[%emt 0:00:17]} Kd5 {[%emt 0:00:05]} 53. Bd2 $1 {[%emt 0:00:26]} e3 {[%emt 0:00:05]} ({Better is} 53... Bd4 $17 54. Bf4 Kc4) 54. Bxe3 $11 {[%emt 0:00:13] The position is equal.} Bxe3 {[%emt 0:00:09]} 55. Kxe3 {[%emt 0:00:04] KPP-KPP} Ke5 {[%emt 0:00:03]} 56. Kd3 {[%emt 0:00:06]} f4 {[%emt 0:00:13]} 57. gxf4+ {[%emt 0:00:05]} Kxf4 {[%emt 0:00:03] ( -> ...Kf3)} 58. Ke2 {[%emt 0:00:06]} g3 {[%emt 0:00:06]} 59. fxg3+ {[%emt 0:00:03]} Kxg3 {Weighted Error Value: White=0.06 (flawless) /Black=0.10 (very precise)} 1/2-1/2

[Event "37th ECCC 2022"]
[Site "Mayrhofen"]
[Date "2022.10.05"]
[Round "3.38"]
[White "Hansen, Eric"]
[Black "Brunner, Nicolas"]
[Result "1-0"]
[ECO "C43"]
[WhiteElo "2613"]
[BlackElo "2448"]
[Annotator "TA"]
[PlyCount "73"]
[EventDate "2022.10.03"]
[EventType "team-tourn"]
[EventCountry "AUT"]
[SourceTitle "playchess.com"]
[Source "ChessBase"]
[SourceQuality "1"]
[TimeControl "40/5400+30:1800+30"]

{[%evp 14,73,0,0,0,0,0,-5,0,-1,-16,-27,-27,-29,-29,-67,-54,-87,-88,-96,-85,-100,-43,-89,-61,-102,0,-60,0,0,0,0,0,0,-6,-4,0,0,0,0,87,81,84,13,174,0,227,123,233,228,274,274,481,475,750,766,760,759,713,732,669,635]} 1. e4 {[%emt 0:00:34]} e5 {[%emt 0:00:06]} 2. Nf3 {[%emt 0:00:56]} Nf6 {[%emt 0:00:06]} 3. d4 {[%emt 0:10:07]} Nxe4 {[%emt 0:00:28]} 4. Bd3 {[%emt 0:00:06]} d5 {[%emt 0:00:06]} 5. Nxe5 {[%emt 0:00:05]} Nd7 {[%emt 0:00:18]} 6. Nc3 {[%emt 0:00:37]} Nxc3 {[%emt 0:05:16]} 7. bxc3 {[%emt 0:00:07]} Nxe5 {[%emt 0:01:24]} 8. dxe5 {[%emt 0:00:07]} Bc5 {[%emt 0:03:35] C43: Petroff Defence: 3 d4.} 9. O-O {[%emt 0:16:12]} O-O {[%emt 0:06:45] The main line 9...0-0 scores better than 9...Be6.} 10. Re1 $5 {[%emt 0:15:25][%mdl 4] [#] A promising side line.} Be6 $146 {[%emt 0:08:24] The position is equal.} ({Predecessor:} 10... Qh4 11. Be3 Bxe3 12. Rxe3 c5 13. Qd2 Be6 14. Rg3 f6 15. Re1 f5 16. f4 Qe7 {½-½ (32) Laube,B (2417)-Herrera,A (2275) ICCF email 2009}) 11. Rb1 {[%emt 0:02:02]} b6 {[%emt 0:03:33]} 12. Qf3 {[%emt 0:15:45]} f5 {[%emt 0:15:14]} 13. Bb5 {[%emt 0:04:03]} Qh4 {[%emt 0:04:38]} 14. Bc6 {[%emt 0:08:56]} Rad8 {[%emt 0:00:16]} 15. Qg3 {[%emt 0:03:46]} Qxg3 {[%emt 0:01:43]} (15... Qh5 {keeps more tension.} 16. Bf4 h6 17. h4 Be7) 16. hxg3 {[%emt 0:00:02]} h6 $1 {[%emt 0:02:44] Prevents Bg5.} 17. Rd1 {[%emt 0:02:58]} Kf7 {[%emt 0:08:54]} ({Black should try} 17... d4 $17 18. cxd4 Rxd4 19. Rxd4 Bxd4) 18. a4 {[%emt 0:01:02]} (18. Be3 $15 Bxe3 19. fxe3) 18... a5 {[%emt 0:03:38]} 19. Kf1 {[%emt 0:01:11]} Ke7 {[%emt 0:01:26]} (19... d4 $17 {...Ba2 is the strong threat.} 20. Bb5 dxc3) 20. f4 {[%emt 0:02:15]} (20. Ke2 $11) 20... Bd7 {[%emt 0:01:04]} (20... Rg8 $15) 21. Bxd7 $11 {[%emt 0:00:47]} Rxd7 {[%emt 0:00:07]} 22. Ke2 {[%emt 0:00:47]} Ke6 {[%emt 0:05:52]} 23. Rh1 {[%emt 0:03:04]} Rfd8 {[%emt 0:01:37]} 24. Kd3 {[%emt 0:00:58]} d4 {[%emt 0:06:02] Threatens to win with ...dxc3+.} 25. c4 {[%emt 0:00:06]} Bb4 {[%emt 0:00:06]} 26. Bd2 {[%emt 0:02:01]} c5 {[%emt 0:01:02]} (26... Bf8 $11) 27. Rh4 $16 {[%emt 0:01:29]} Rf7 {[%emt 0:02:41]} 28. g4 {[%emt 0:04:16]} ({White should play} 28. Rbh1 $16) 28... Rdf8 $2 {[%emt 0:06:19]} (28... fxg4 $11 {and Black stays safe.} 29. Rxg4 Bxd2 30. Kxd2 Kf5) 29. g3 $2 {[%emt 0:00:37]} (29. gxf5+ $18 Rxf5 30. Bc1) 29... Rg8 $2 {[%emt 0:08:18]} (29... fxg4 $11 30. Rbh1 Kf5) 30. Rbh1 {[%emt 0:02:05]} (30. gxf5+ $18 Rxf5 31. Ke4) 30... fxg4 {[%emt 0:00:41] [#]} (30... Bxd2 $16 {was worth a try.} 31. gxf5+ Kxf5 32. Kxd2 Ke4) 31. Bc1 $1 $18 {[%emt 0:01:50]} Kf5 {[%emt 0:02:29]} 32. Rh5+ {[%emt 0:00:05]} Kg6 $2 {[%emt 0:00:07] [#]} (32... Ke6 {might work better.} 33. Ke4 Rd8) 33. Ke4 $1 {[%emt 0:00:13] aiming for f5+. White is clearly winning.} Rgf8 {[%emt 0:01:12]} (33... Rc7 $142 34. R5h4 Kf7) 34. e6 {[%emt 0:02:14][%cal Be5e6,Be6e7][%mdl 32]} Rf6 {[%emt 0:00:32]} 35. f5+ {[%emt 0:00:12]} Kh7 {[%emt 0:00:14]} 36. Bg5 {[%emt 0:00:25]} Rxf5 {[%emt 0:00:56]} 37. e7 {[%emt 0:00:06] Weighted Error Value: White=0.26 (precise) /Black=0.47} 1-0

[Event "37th ECCC 2022"]
[Site "Mayrhofen"]
[Date "2022.10.05"]
[Round "3.39"]
[White "Breder, Dennis"]
[Black "Christiansen, Johan-Sebastian"]
[Result "0-1"]
[ECO "C07"]
[WhiteElo "2450"]
[BlackElo "2576"]
[Annotator "TA"]
[PlyCount "116"]
[EventDate "2022.10.03"]
[EventType "team-tourn"]
[EventCountry "AUT"]
[SourceTitle "playchess.com"]
[Source "ChessBase"]
[SourceQuality "1"]
[TimeControl "40/5400+30:1800+30"]

{[%evp 15,116,0,18,9,11,0,10,12,15,0,0,-13,-12,-15,-35,-31,-28,-31,-22,-32,3,0,0,0,0,0,2,-31,-13,-31,-16,-41,7,0,0,0,16,0,0,-14,-4,-11,0,-45,0,0,0,0,0,-124,-45,-239,-166,-134,-139,-406,-185,-457,-216,-617,-599,-1256,-1199,-1531,-1407,-1322,-591,-516,-343,-442,-270,-420,-241,-280,-282,-631,-367,-29974,-29975,-29973,-29974,-29973,-29977,-5983,-29952,-5814,-5810,-3057,-2755,-2005,-614,-29977,-29978,-29978,-29978,-29975,-5506,-5508,-5398,-29964,-29958,-5277,-4981]} 1. e4 {[%emt 0:00:05]} e6 {[%emt 0:00:21]} 2. d4 {[%emt 0:00:03]} d5 {[%emt 0:00:06]} 3. Nd2 {[%emt 0:00:03]} c5 {[%emt 0:01:21]} 4. Ngf3 {[%emt 0:00:22]} cxd4 {[%emt 0:01:05]} 5. Nxd4 {[%emt 0:00:07]} Nc6 {[%emt 0:01:08]} 6. Bb5 {[%emt 0:00:05]} Bd7 {[%emt 0:00:03]} 7. Nxc6 {[%emt 0:00:04]} bxc6 {[%emt 0:00:06]} 8. Bd3 {[%emt 0:00:05]} Qc7 {[%emt 0:00:04]} 9. Qe2 {[%emt 0:00:16] C07: French Tarrasch: 3...c5, 4 Ngf3 and 4 exd5 Qxd5.} Ne7 {[%emt 0:00:04]} 10. Nf3 {[%emt 0:44:22]} Ng6 {[%emt 0:00:11]} 11. O-O {[%emt 0:00:43] The position is equal.} Be7 $1 {[%emt 0:00:08][%mdl 4] outshines the older 11...Bd6.} 12. Re1 {[%emt 0:04:35]} O-O {[%emt 0:00:35] [#]} 13. exd5 $146 {[%emt 0:22:05]} ({Predecessor:} 13. e5 c5 14. Bg5 Rae8 15. c4 Bc6 16. cxd5 Bxd5 17. Bxe7 Rxe7 18. Be4 Rd7 19. Qc2 Bxe4 20. Rxe4 {½-½ (41) Jones,G (2709)-Shankland,S (2717) Saint Louis 2019}) 13... cxd5 {[%emt 0:01:48]} 14. Ng5 {[%emt 0:05:42]} Rae8 {[%emt 0:41:32]} 15. Qh5 {[%emt 0:06:14][%csl Gg5][%cal Rh5h7] [#]} Bxg5 {[%emt 0:00:25]} 16. Qxg5 {[%emt 0:00:59]} f5 {[%emt 0:10:31]} 17. f4 {[%emt 0:04:55]} d4 {[%emt 0:05:01] Prevents Be3.} 18. Bd2 {[%emt 0:01:13]} Bc6 {[%emt 0:02:34]} 19. h4 {[%emt 0:01:11]} Qb7 {[%emt 0:09:28]} 20. b4 {[%emt 0:03:28]} Rf6 {[%emt 0:05:11][%cal Og6e5]} 21. Re2 {[%emt 0:00:24] Inhibits Ne5.} Nh8 {[%emt 0:01:28][%cal Bg6h8,Bh8f7,Bf7d6,Bd6e4][%mdl 32] Threatens to win with ...Rg6.} 22. h5 {[%emt 0:00:46] Inhibits Rg6.} Nf7 {[%emt 0:00:26]} 23. Qh4 {[%emt 0:00:20][%cal Ob4b5]} Qb6 {[%emt 0:06:48]} (23... Nd6 $15 {deserves consideration.}) 24. a4 $11 {[%emt 0:01:02][%cal Ba2a4,Ba4a5][%mdl 32]} Nd6 {[%emt 0:00:18]} 25. b5 {[%emt 0:00:36]} Bd5 {[%emt 0:02:06]} 26. a5 {[%emt 0:00:12]} Qc5 {[%emt 0:01:15]} 27. Rb1 {[%emt 0:00:30]} Ne4 {[%emt 0:00:02]} 28. Bb4 {[%emt 0:01:44]} Qc7 {[%emt 0:00:01]} 29. Rd1 {[%emt 0:00:51]} Rb8 {[%emt 0:06:30]} 30. Bxe4 {[%emt 0:01:25]} fxe4 {[%emt 0:00:54]} 31. Rxd4 {[%emt 0:00:28][%cal Oc2c4] aiming for c4!} Rxb5 {[%emt 0:01:25]} ({But not} 31... Rxf4 32. Qe7 Qe5 33. Rxd5 (33. Qxa7 Rxb5 34. c3 h6 $15) 33... Qxd5 34. Rd2 $11) 32. c3 {[%emt 0:00:43]} (32. Qe1 $1 $11 {remains equal.} Qb8 33. Rexe4 Bxe4 34. Qxe4) 32... Rxf4 {[%emt 0:00:17]} ({Better is} 32... h6 $17 33. Qg3 Qf7) 33. Qh3 $2 {[%emt 0:00:38]} (33. Rf2 $1 $15 Rxf2 34. Qxf2) 33... Qf7 {[%emt 0:02:13] ...Rf1+ is the strong threat.} 34. Re1 {[%emt 0:00:40] Inhibits Rf1+.} h6 {[%emt 0:01:23]} 35. Qg3 $2 {[%emt 0:00:01][%mdl 8192] This move loses the game for White.} (35. Bd6 $17 e5 36. Qc8+ Kh7 37. Bxe5) 35... Rf5 {[%emt 0:00:34]} (35... e5 $142 36. Rd2 Qxh5) 36. Qd6 $2 {[%emt 0:00:14]} (36. Qg6 {was called for.}) 36... e5 {[%emt 0:00:28]} (36... Qxh5 $142 {And now ...Qh4 would win.} 37. Qg3 Rb7) 37. Rd2 $2 {[%emt 0:01:00]} (37. Rdd1) 37... e3 $19 {[%emt 0:00:04]} 38. Qd8+ {[%emt 0:00:46]} Kh7 {[%emt 0:00:02]} 39. Rxe3 {[%emt 0:00:16]} Rf1+ {[%emt 0:00:27]} 40. Kh2 {[%emt 0:00:00]} Qxh5+ {[%emt 0:01:23]} (40... Qf4+ $142 41. Rg3 Qxd2) 41. Rh3 {[%emt 0:13:20]} Qf7 {[%emt 0:15:16]} 42. Qh4 {[%emt 0:04:44]} Rb7 {[%emt 0:06:51]} 43. Rhd3 {[%emt 0:01:53]} (43. Qg5 $142) 43... Rf5 {[%emt 0:06:32]} 44. Qe1 {[%emt 0:02:48]} ({Don't play} 44. Rxd5 Rh5 45. Qxh5 Qxh5+ 46. Kg1 Rf7 $19) 44... Bc6 {[%emt 0:01:30]} 45. Rd6 $2 {[%emt 0:00:49]} (45. Rh3) 45... Rc7 {[%emt 0:00:43] White must now prevent ...Rh5+.} 46. Rd8 $2 {[%emt 0:01:56] [#]} (46. Kg1 $19 Qc4 47. Rf2) 46... Rh5+ {[%emt 0:01:40]} 47. Kg1 {[%emt 0:00:02]} Qf4 {[%emt 0:00:06]} 48. Rf8 {[%emt 0:04:06]} Qh2+ {[%emt 0:00:13]} 49. Kf1 {[%emt 0:00:02]} Qh1+ {[%emt 0:00:59]} 50. Ke2 {[%emt 0:00:07]} Qxg2+ {[%emt 0:00:25]} 51. Kd1 {[%emt 0:01:05]} Rd7 {[%emt 0:01:20]} 52. Rff2 {[%emt 0:01:14]} Rxd2+ {[%emt 0:00:16]} (52... Qg4+ $142 53. Kc2 Rh1 54. Qxh1 Bxh1 55. Rxd7 Qxd7) 53. Qxd2 {[%emt 0:01:21]} Rh1+ {[%emt 0:00:27]} 54. Kc2 {[%emt 0:00:05]} Qe4+ {[%emt 0:00:17]} 55. Kb2 {[%emt 0:00:50]} Qb1+ {[%emt 0:00:46]} (55... Ba4 $142 56. Ka3 Ra1+ 57. Qa2 Qb1 58. Kxa4 Rxa2+ 59. Rxa2 Qxa2+ 60. Kb5 e4 61. Bf8 Qb3+ 62. Bb4 e3 63. Kc5 e2 64. c4 Qb1 65. a6 Qb3 66. Be1 Qb1 67. Bb4 g5 68. Bc3 g4 69. Kd4 g3 70. Ke3 g2 71. Kd4 g1=Q+ 72. Kd5 Qd3+ 73. Bd4 Qgxd4+ 74. Ke6 Qd7+ 75. Kf6 Q3f5#) 56. Ka3 {[%emt 0:00:01]} Qa1+ {[%emt 0:00:08]} 57. Kb3 {[%emt 0:00:30]} Qa4+ {[%emt 0:00:35]} 58. Kb2 {[%emt 0:00:12]} Be4 {[%emt 0:00:21] Weighted Error Value: White=1.19/Black=0.63} 0-1